Cogmind - Beta 15 @@@ ROGUE MODE // 2025.05.20 @ 22:31:09 Player: jumpy Result: Destroyed by P-70 Sage with Tesla Rifle Performance ------------- Evolutions (6) 3000 Regions Visited (9) 1800 Robots Destroyed (92) 460 Value Destroyed (3109) 3109 Prototype IDs (3) 60 Alien Tech Used (0) 0 Bonus (0) 0 TOTAL SCORE: 8429 Bonus ------- None Cogmind --------- Core Integrity 0/1150 Matter 186/300 Energy 100/100 System Corruption 3% Temperature Cool (0) Movement Core (200) Ox3 Location -4/Upper Caves Parts ------- > --- POWER (1) -------- (None) > --- PROPULSION (6) --- (None) > --- UTILITY (9) ------ Improved Signal Interpreter Advanced Signal Interpreter Improved Hacking Suite > --- WEAPON (3) ------- Hardcell Cannon > --- INVENTORY (5) ---- Advanced Signal Interpreter System Restoration Module Peak State ------------ > --- POWER ------------ Light Fission Core > --- PROPULSION ------- Armored Huge Wheel Armored Huge Wheel > --- UTILITY ---------- Advanced Heat Sink High-capacity Storage Unit Improved Sensor Array Improved Signal Interpreter Advanced Targeting Computer Transmission Jammer Hacking Suite > --- WEAPON ----------- Heavy Plasma Cannon Gauss Cannon Katana > --- INVENTORY -------- Deuterium Engine Light Fission Core Wheel Armored Huge Wheel Improved Signal Interpreter Improved Terrain Scanner Advanced Targeting Computer Plasma Cannon Phase Cannon Heavy Machine Gun Heavy Machine Gun Heavy Machine Gun Advanced Assault Cannon Advanced Assault Cannon Rocket Launcher Improved Datajack Heavy Mace Katana [Rating: 61] Favorites ----------- Power Cooled Ion Engine Engine Cooled Ion Engine Power Core Light Fission Core Propulsion Light Treads Treads Light Treads Wheel Armored Huge Wheel Hover Unit Antigrav System Flight Unit Field Propulsion Array Utility High-capacity Storage Unit Device Improved Sensor Array Storage High-capacity Storage Unit Processor Advanced Targeting Computer Hackware Hacking Suite Protection Hardened Medium Armor Plating Weapon High-powered Shotgun Energy Gun Small Laser Energy Cannon Phase Cannon Ballistic Gun High-powered Shotgun Ballistic Cannon Gauss Cannon Launcher Grenade Launcher Impact Weapon Heavy Mace Slashing Weapon Katana Build | -11 -10 -9 -8 -7 -6 -5 -4 -4 -4 ------- Run | Yrd Mat Mat Mat Fac Fac Fac Fac Upp Upp Slots Evolved 12 | . . 2 2 2 2 2 2 . . Power . | . . . . . . . . . . Propulsion 4 | . . 1 1 . . 1 1 . . Utility 7 | . . 1 1 2 1 1 1 . . Weapon 1 | . . . . . 1 . . . . Parts Attached 90 | 8 5 13 16 12 14 7 11 4 . Power 14 | 2 1 4 . 2 2 2 1 . . Engine 8 | 2 1 4 . 1 . . . . . Core 6 | . . . . 1 2 2 1 . . Reactor . | . . . . . . . . . . Propulsion 26 | 2 2 3 6 3 3 2 5 . . Treads 10 | 2 . 1 6 1 . . . . . Leg . | . . . . . . . . . . Wheel 9 | . 2 2 . 2 2 1 . . . Hover 4 | . . . . . 1 . 3 . . Flight 3 | . . . . . . 1 2 . . Utility 22 | 2 1 1 4 4 3 1 4 2 . Device 10 | 1 . . 2 3 2 . . 2 . Storage 4 | 1 1 . . . . . 2 . . Processor 4 | . . 1 2 . . . 1 . . Hackware 3 | . . . . . 1 1 1 . . Protection 1 | . . . . 1 . . . . . Artifact . | . . . . . . . . . . Weapon 28 | 2 1 5 6 3 6 2 1 2 . Energy Gun 9 | 2 1 3 1 1 1 . . . . Energy Cannon 5 | . . . . 1 2 2 . . . Ballistic Gun 6 | . . 2 3 . . . . 1 . Ballistic Cannon 4 | . . . 1 1 1 . 1 . . Launcher 2 | . . . 1 . . . . 1 . Special Weapon . | . . . . . . . . . . Impact Weapon 1 | . . . . . 1 . . . . Slashing Weapon 1 | . . . . . 1 . . . . Piercing Weapon . | . . . . . . . . . . Special Melee Weapon . | . . . . . . . . . . Unidentified Prototypes 3 | . . 1 1 . 1 . . . . Parts Lost 49 | . 4 6 . 2 9 17 1 10 . Power 6 | . . 1 . . 2 2 . 1 . Propulsion 16 | . 1 3 . 1 2 4 1 4 . Utility 13 | . 1 . . 1 2 6 . 3 . Weapon 14 | . 2 2 . . 3 5 . 2 . Highest Loss Streak 16 | . 3 3 . 1 3 16 1 6 . To Critical Strikes . | . . . . . . . . . . Average Backups 12 | 3 7 7 12 17 16 15 4 4 2 Power 2 | . 2 2 2 2 2 2 . . . Propulsion . | 1 2 . . 1 1 . . . . Utility 3 | . 2 3 3 3 3 5 2 2 2 Weapon 5 | . . 1 5 9 8 7 2 2 . Tool/Special . | . . . . . . . . . . Unused Backups 24 | . . . 1 6 5 7 3 . 2 Power 5 | . . . 1 1 2 1 . . . Propulsion . | . . . . . . . . . . Utility 8 | . . . . 2 1 2 1 . 2 Weapon 10 | . . . . 3 2 3 2 . . Tool/Special 1 | . . . . . . 1 . . . Average Slot Usage (%) 77 | . 88 59 79 92 82 71 27 34 21 Engine 6 | . 14 11 8 4 2 . . . . Core 1 | . . . . 2 3 4 3 1 . Treads 10 | . 11 5 19 18 . . . . . Wheel 6 | . 11 10 . 5 12 12 . . . Device 9 | . 10 . 8 13 15 14 . 3 . Storage 7 | . 14 11 9 7 6 4 . . . Processor 11 | . . 3 17 15 13 10 6 10 10 Hackware 1 | . . . . . 6 5 6 9 5 Protection 1 | . . . . 7 1 . . . . Energy Gun 4 | . 24 13 1 . . . . . . Energy Cannon 1 | . . . . 2 6 4 . . . Ballistic Gun 4 | . . 4 9 9 . . . . . Ballistic Cannon 3 | . . . 4 2 5 4 1 . 5 Peak Build Rating 61 | 7 8 15 31 51 61 54 57 57 20 Average Rating 30 | 5 6 8 22 40 55 47 31 38 20 On Entrance 23 | . 7 5 15 29 51 52 7 57 14 Naked Turns . | . . . . . . . . . . Heaviest Build 77 | 14 49 52 55 75 77 70 24 14 . Greatest Support 86 | 40 40 40 86 86 56 48 33 22 . Greatest Overweight (x) 15 | . 4 15 15 1 2 2 7 4 . Average Overweight (x) 1 | . 1 3 1 . 1 . . . . Largest Inventory Capacity 20 | 8 20 20 20 20 20 20 15 5 5 Average Capacity 17 | 7 15 20 20 20 20 18 5 5 5 Most Carried 20 | 6 8 11 19 20 20 18 5 5 2 Average Carried 12 | 3 7 7 12 18 17 15 4 4 2 Final Capacity 20 | 8 20 20 20 20 20 5 5 5 5 Final Carried 20 | 6 8 11 17 20 14 5 5 3 2 Class Distribution -------------------- 84% | Mutant 9% | Assassin 4% | Hacker-Mutant Dominant Class ---------------- Mutant | -10/Materials Mutant | -9/Materials Mutant | -8/Materials Mutant | -7/Factory Mutant | -6/Factory Assassin | -5/Factory Hacker-Mutant | -4/Factory Hacker-Mutant | -4/Upper Caves Hacker-Mutant | -4/Upper Caves Resources | -11 -10 -9 -8 -7 -6 -5 -4 -4 -4 ----------- Run | Yrd Mat Mat Mat Fac Fac Fac Fac Upp Upp Matter Collected 2073 | 280 75 149 435 541 350 143 7 93 . Remotely . | . . . . . . . . . . Salvage Created 3420 | 158 345 467 431 650 997 240 48 84 . Parts 184 | 10 30 32 22 32 45 6 1 6 . Haulers Intercepted 5 | . 1 2 1 . 1 . . . . Recyclers Shooed 3 | . . 1 2 . . . . . . Parts Field Recycled . | . . . . . . . . . . Retrieved Matter . | . . . . . . . . . . Parts Self-Destructed 5 | . . . . . . . . 5 . Prevented 1 | . . . . . . . . 1 . Kills | -11 -10 -9 -8 -7 -6 -5 -4 -4 -4 ------- Run | Yrd Mat Mat Mat Fac Fac Fac Fac Upp Upp Combat Hostiles Destroyed 71 | . 11 13 10 14 17 2 1 3 . Melee 3 | . . . . . 3 . . . . Guns 39 | . 11 11 7 8 . . . 2 . Cannons 25 | . . . 3 6 14 1 1 . . AOE 3 | . . 2 . . . . . 1 . Classes Destroyed 14 | 3 4 2 2 1 2 . . . . Worker 3 | 1 . 1 . . 1 . . . . Builder 2 | . . . . . 1 1 . . . Tunneler 3 | 2 . . 1 . . . . . . Hauler 5 | . 1 2 1 . 1 . . . . Recycler 4 | 1 . . 1 1 . 1 . . . Operator 3 | . 1 . . 2 . . . . . Watcher 1 | . . . 1 . . . . . . Swarmer 18 | . 6 6 3 . . . . 3 . Grunt 31 | . 5 5 3 8 9 1 . . . Brawler 2 | . . . 1 . 1 . . . . Duelist 3 | . . 1 . . 2 . . . . Sentry 7 | . . 1 3 1 1 . 1 . . Hunter 3 | . . . . . 2 1 . . . Programmer 7 | . . . . 5 2 . . . . Best Kill Streak 9 | 3 3 4 4 6 9 3 1 2 . Combat Bots Only 9 | . 3 4 3 6 9 1 1 2 . Max Kills in Single Turn 2 | 1 2 1 1 1 1 1 1 1 . Gunslinging 1 | . 1 . . . . . . . . Exploded 1 | . . 1 . . . . . 1 . Melee 1 | . . . . . 1 . . . . Uniques/NPCs Destroyed . | . . . . . . . . . . Combat | -11 -10 -9 -8 -7 -6 -5 -4 -4 -4 -------- Run | Yrd Mat Mat Mat Fac Fac Fac Fac Upp Upp Hostile Shots Fired 772 | . 90 81 55 95 128 137 57 112 17 Missed 208 | . 19 15 9 26 36 38 28 34 3 Hits 564 | . 71 66 46 69 92 99 29 78 14 Melee 11 | . . 7 1 . 2 1 . . . Projectile 553 | . 71 59 45 69 90 98 29 78 14 Critical Strikes 10 | . . 2 . 3 3 . 1 1 . Damage Taken 8674 | . 644 864 603 963 1490 1946 529 1344 291 Core 2654 | . 182 200 72 145 173 730 265 717 170 Absorbed by Shields . | . . . . . . . . . . Regen/Repaired (Parts) 14 | . . . . 14 . . . . . Core Remaining (%) 64 | 100 27 50 86 79 79 27 . . . Volleys Fired 302 | 7 55 52 50 55 46 18 5 8 6 Largest 2 | 2 2 2 2 2 2 2 1 1 1 Hottest 149 | 90 90 88 53 120 130 149 55 46 55 Shots Fired 480 | 14 91 63 74 102 88 29 5 8 6 Gun 268 | 14 91 63 40 53 . . . 7 . Cannon 208 | . . . 31 49 88 29 5 . 6 Launcher 4 | . . . 3 . . . . 1 . Special . | . . . . . . . . . . Kinetic 226 | . . 19 71 68 42 8 5 7 6 Thermal 223 | 14 91 21 . 34 46 17 . . . Explosive 3 | . . . 3 . . . . . . Electromagnetic 28 | . . 23 . . . 4 . 1 . Robot Hit Streak 18 | 9 18 9 8 11 11 9 8 1 5 Robot Miss Streak 7 | 1 6 4 4 7 2 2 1 2 1 Penetration Max . | . . . . . . . . . . Secondary Targets 3 | . 1 1 1 . . . . . . Max Gunslinging Chain 1 | . 1 1 1 . . . . . . Shots Hit Robots 334 | 10 52 46 51 67 75 21 4 3 5 Core Hits 160 | 5 20 28 24 35 36 4 2 6 . Critical Kills . | . . . . . . . . . . Critical Parts Destroyed 2 | . . . . 1 . 1 . . . Critical Strikes 11 | 2 3 1 . 2 2 1 . . . Burn 5 | 2 3 . . . . . . . . Destroy 1 | . . . . 1 . . . . . Blast 2 | . . . . 1 1 . . . . Corrupt 1 | . . 1 . . . . . . . Smash 1 | . . . . . . 1 . . . Sever 1 | . . . . . 1 . . . . Melee Attacks 22 | . . . . . 18 4 . . . Impact 6 | . . . . . 2 4 . . . Slashing 16 | . . . . . 16 . . . . Piercing . | . . . . . . . . . . Sneak Attacks 4 | . . . . . 2 2 . . . Combat Hostiles . | . . . . . . . . . . Follow-up Attacks . | . . . . . . . . . . Damage Inflicted 8303 | 131 627 901 1070 1769 2357 815 267 141 225 Guns 3117 | 131 625 677 653 966 . . . 65 . Cannons 3940 | . . . 373 771 1855 559 157 . 225 Explosions 363 | . . 181 18 . . . 110 54 . Melee 751 | . . . . . 502 249 . . . Ramming 132 | . 2 43 26 32 . 7 . 22 . Kinetic 3577 | . . 166 1026 1103 756 79 157 65 225 Thermal 3424 | 131 625 453 . 634 1099 372 110 . . Explosive 18 | . . . 18 . . . . . . Electromagnetic 401 | . . 239 . . . 108 . 54 . Impact 270 | . . . . . 21 249 . . . Slashing 481 | . . . . . 481 . . . . Piercing . | . . . . . . . . . . Highest Corruption 5 | . . 5 . 2 2 . . . 2 Average Corruption 1 | . . 5 . 1 1 . . . 1 Corruption Purged . | . . . . . . . . . . Corruption Blocked . | . . . . . . . . . . Effects 20 | . . 2 . 10 8 . . . . Matter Fused 7 | . . . . 3 4 . . . . Heat Flow Errors 5 | . . 1 . 2 2 . . . . Energy Discharges 2 | . . . . 1 1 . . . . Data Loss (minor) 2 | . . . . 1 1 . . . . Data Loss (major) 1 | . . . . 1 . . . . . Misfires 2 | . . 1 . 1 . . . . . Alerts 1 | . . . . 1 . . . . . Overload Shots . | . . . . . . . . . . Overflow Damage 342 | . . . 5 24 74 152 46 . 41 Projectiles 111 | . . . 5 23 42 . . . 41 Explosions 46 | . . . . . . . 46 . . Melee 185 | . . . . 1 32 152 . . . Knockbacks 18 | . . . 4 5 8 1 . . . Impact 3 | . . . . 1 1 1 . . . Kinetic 14 | . . . 4 4 6 . . . . Secondary 1 | . . . . . 1 . . . . Self-Inflicted Damage 122 | . . 35 . 15 . 3 58 11 . Shots 2 | . . 1 . . . . 1 . . Rammed 23 | . 1 7 4 3 . 3 . 5 . Targets Rammed 25 | . 1 7 6 3 . 3 . 5 . Kicked . | . . . . . . . . . . Crushed 2 | . . . 2 . . . . . . Highest Temperature 385 | 60 373 338 . 385 232 75 5 . . Average Temperature 113 | 25 123 88 . 151 70 22 5 . . Received Heat Transfer 2296 | . 153 243 225 363 522 582 36 172 . Effects 9 | . 2 1 . 6 . . . . . Shutdowns 3 | . 2 1 . . . . . . . Interference 6 | . . . . 6 . . . . . Siege Activations . | . . . . . . . . . . Martial Activations . | . . . . . . . . . . Shielding Activations . | . . . . . . . . . . Robots Disrupted . | . . . . . . . . . . Combat Hostiles . | . . . . . . . . . . Robots Corrupted 4 | . . 1 . . . 3 . . . Combat Hostiles 1 | . . . . . . 1 . . . Parts Fried 8 | . . 1 . . . 7 . . . Impact Corruptions 5 | . . . . 1 . 4 . . . Robots Melted 1 | . 1 . . . . . . . . Combat Hostiles . | . . . . . . . . . . Parts Melted 11 | 1 4 . . 2 3 1 . . . Heat Transferred 6395 | 495 1859 615 . 1275 1518 533 100 . . Parts Sabotaged . | . . . . . . . . . . Parts Stolen . | . . . . . . . . . . Parts Stripped . | . . . . . . . . . . Power Chain Reactions 2 | . . 2 . . . . . . . Alert | -11 -10 -9 -8 -7 -6 -5 -4 -4 -4 ------- Run | Yrd Mat Mat Mat Fac Fac Fac Fac Upp Upp Maximum Alert Level 1 | . . . . 1 1 . . . . Low Security (%) 96 | 100 100 100 100 99 81 100 100 . . Level 1 3 | . . . . . 18 . . . . Level 2 . | . . . . . . . . . . Level 3 . | . . . . . . . . . . Level 4 . | . . . . . . . . . . Level 5 . | . . . . . . . . . . High Security . | . . . . . . . . . . Max Security . | . . . . . . . . . . Peak Influence 228 | 5 76 137 89 201 228 89 105 . . Initial 97 | . . 7 35 26 97 83 38 . . Average 48 | . 28 51 28 54 93 27 47 . . Influence Increases 2612 | 20 306 395 319 441 507 222 122 280 . Destroy 0b10 Robot/C 1420 | . 220 260 200 280 340 40 20 60 . Destroy 0b10 Robot/NC 105 | 20 10 15 20 15 15 10 . . . Destroy Leader 362 | . 52 54 54 90 82 10 10 10 . Successful Hack 26 | . 9 4 . 3 10 . . . . Disable Machine 195 | . . 60 15 45 30 . 45 . . Destroy Structure 84 | . . 2 15 8 15 12 32 . . Partial Spotted 15 | . . . . . . 15 . . . Lose Combat Pursuer 405 | . 15 . 15 . 15 135 15 210 . Influence Decreases 2515 | 20 289 327 345 301 535 314 186 175 23 Entered New Map 353 | . . 10 50 33 102 88 41 6 23 Time Decay 1794 | 20 249 277 295 248 346 135 135 89 . Lost Part 368 | . 40 40 . 20 87 91 10 80 . Squads Dispatched 25 | . 3 2 . 7 7 3 3 . . Investigation 6 | . 1 . . . 2 1 2 . . Extermination 8 | . . . . 4 3 . 1 . . Reinforcement 11 | . 2 2 . 3 2 2 . . . Assault . | . . . . . . . . . . Garrison . | . . . . . . . . . . Intercept . | . . . . . . . . . . Searches Triggered . | . . . . . . . . . . Construction Impeded 1 | . . 1 . . . . . . . Haulers Reinforced 2 | . . . . . 1 1 . . . Active Scanning Responses . | . . . . . . . . . . Cargo Convoy Interrupts . | . . . . . . . . . . Stealth | -11 -10 -9 -8 -7 -6 -5 -4 -4 -4 --------- Run | Yrd Mat Mat Mat Fac Fac Fac Fac Upp Upp Distress Signals 7 | . 2 1 2 1 1 . . . . Communications Jammed 1 | . . . . 1 . . . . . Distress Signals 1 | . . . . 1 . . . . . Times Spotted 155 | . 18 18 17 28 22 18 10 22 2 Peak Tracking Total 10 | . 4 4 4 7 4 10 9 8 2 Tactical Retreats 12 | . 1 . 1 . 1 3 1 5 . Traps | -11 -10 -9 -8 -7 -6 -5 -4 -4 -4 ------- Run | Yrd Mat Mat Mat Fac Fac Fac Fac Upp Upp Traps Triggered 8 | . 3 . 3 1 1 . . . . Indirectly . | . . . . . . . . . . Trap Hack Attempts . | . . . . . . . . . . Triggered . | . . . . . . . . . . Disarmed . | . . . . . . . . . . Reprogrammed . | . . . . . . . . . . Reused . | . . . . . . . . . . Traps Extracted . | . . . . . . . . . . Installed . | . . . . . . . . . . Triggered . | . . . . . . . . . . Machines | -11 -10 -9 -8 -7 -6 -5 -4 -4 -4 ---------- Run | Yrd Mat Mat Mat Fac Fac Fac Fac Upp Upp Machines Disabled 13 | . . 4 1 3 2 . 3 . . Max in Single Turn 3 | . . 1 1 1 1 . 3 . . Machines Repaired . | . . . . . . . . . . Machines Dismantled . | . . . . . . . . . . Machines Sabotaged . | . . . . . . . . . . Overloaded Fab Kills . | . . . . . . . . . . Hacking | -11 -10 -9 -8 -7 -6 -5 -4 -4 -4 --------- Run | Yrd Mat Mat Mat Fac Fac Fac Fac Upp Upp Machines Accessed 17 | . 4 2 1 3 3 1 3 . . Terminals 9 | . 4 2 1 . 1 . 1 . . Fabricators 3 | . . . . 1 . . 2 . . Repair Stations 4 | . . . . 2 1 1 . . . Recycling Units . | . . . . . . . . . . Scanalyzers 1 | . . . . . 1 . . . . Garrison Access . | . . . . . . . . . . Total Hacks 35 | . 6 6 1 4 7 4 7 . . Successful 13 | . 4 2 1 2 1 . 3 . . Failed 22 | . 2 4 . 2 6 4 4 . . Catastrophic 1 | . . . . . . . 1 . . Database Lockouts . | . . . . . . . . . . Manual 22 | . 5 6 1 1 3 3 3 . . Terminals 18 | . 6 6 1 . 1 . 4 . . Fabricators 4 | . . . . 1 . . 3 . . Repair Stations 10 | . . . . 3 3 4 . . . Recycling Units . | . . . . . . . . . . Scanalyzers 3 | . . . . . 3 . . . . Garrison Access . | . . . . . . . . . . Terminal Hacks 2 | . 1 . . . . . 1 . . Record 1 | . . . . . . . 1 . . Robot Analysis 1 | . 1 . . . . . . . . Fabricator Hacks 1 | . . . . . . . 1 . . Network Status 1 | . . . . . . . 1 . . Repair Station Hacks 2 | . . . . 2 . . . . . Scan Component 1 | . . . . 1 . . . . . Repair 1 | . . . . 1 . . . . . Recycling Unit Hacks . | . . . . . . . . . . Scanalyzer 1 | . . . . . 1 . . . . Insert Component 1 | . . . . . 1 . . . . Garrison Access Hacks . | . . . . . . . . . . Unauthorized Hacks 7 | . 3 2 1 . . . 1 . . Terminals 7 | . 3 2 1 . . . 1 . . Disrupt 1 | . . . . . . . 1 . . Skim 6 | . 3 2 1 . . . . . . Fabricators . | . . . . . . . . . . Repair Stations . | . . . . . . . . . . Recycling Units . | . . . . . . . . . . Scanalyzers . | . . . . . . . . . . Garrison Access . | . . . . . . . . . . Data Cores Recovered 1 | . . . . 1 . . . . . Used . | . . . . . . . . . . Hacking Detections 13 | . 2 2 . 3 3 1 2 . . Full Trace Events 5 | . . . . . 2 1 2 . . Feedback Events . | . . . . . . . . . . Feedback Blocked . | . . . . . . . . . . Robot Schematics Acquired . | . . . . . . . . . . Robots Built . | . . . . . . . . . . Authchips . | . . . . . . . . . . Time . | . . . . . . . . . . Total Robot Build Rating . | . . . . . . . . . . Part Schematics Acquired . | . . . . . . . . . . Parts Built . | . . . . . . . . . . Authchips . | . . . . . . . . . . Time . | . . . . . . . . . . Total Part Build Rating . | . . . . . . . . . . Parts Repaired 1 | . . . . 1 . . . . . Time 38 | . . . . 38 . . . . . Parts Recycled . | . . . . . . . . . . Recycled Matter . | . . . . . . . . . . Retrieved Matter . | . . . . . . . . . . Retrieved Components . | . . . . . . . . . . Parts Scanalyzed 1 | . . . . . 1 . . . . Part Schematics Acquired . | . . . . . . . . . . Parts Damaged . | . . . . . . . . . . Bothacking | -11 -10 -9 -8 -7 -6 -5 -4 -4 -4 ------------ Run | Yrd Mat Mat Mat Fac Fac Fac Fac Upp Upp Used RIF Installer . | . . . . . . . . . . Robots Hacked . | . . . . . . . . . . Non-combat . | . . . . . . . . . . Combat . | . . . . . . . . . . Robot Hacks Applied . | . . . . . . . . . . Relay Couplers Released . | . . . . . . . . . . Fabnet Peak Effective % . | . . . . . . . . . . Robots Rewired . | . . . . . . . . . . Allies Hacked . | . . . . . . . . . . Hacks Repelled . | . . . . . . . . . . Allies | -11 -10 -9 -8 -7 -6 -5 -4 -4 -4 -------- Run | Yrd Mat Mat Mat Fac Fac Fac Fac Upp Upp Total Allies 1 | . . . . . . . . 1 . Largest Group 1 | . . . . . . . . 1 . Highest-Rated Group 167 | . . . . . . . . 167 . Highest-Rated Ally 167 | . . . . . . . . 167 . Total Orders . | . . . . . . . . . . Ally Attacks . | . . . . . . . . . . Total Damage . | . . . . . . . . . . Kills . | . . . . . . . . . . Allies Corrupted . | . . . . . . . . . . Allies Melted . | . . . . . . . . . . Intel | -11 -10 -9 -8 -7 -6 -5 -4 -4 -4 ------- Run | Yrd Mat Mat Mat Fac Fac Fac Fac Upp Upp Active Infowar (turns) 4878 | 75 527 . 1309 1322 1255 389 . 1 . Sensors 3988 | . . . 1309 1052 1255 372 . . . Terrain 689 | . . . . . 300 389 . . . Seismic 602 | 75 527 . . . . . . . . Cloaking 1 | . . . . . . . . 1 . Jamming 1181 | . . . . 413 768 . . . . Robot Analysis Total 1 | . 1 . . . . . . . . Derelict Logs Recovered 1 | . . . . . . . . 1 . Drone Launches . | . . . . . . . . . . Drone Recoveries . | . . . . . . . . . . Exploration | -11 -10 -9 -8 -7 -6 -5 -4 -4 -4 ------------- Run | Yrd Mat Mat Mat Fac Fac Fac Fac Upp Upp Turns Passed 7196 | 217 689 842 1661 1572 1255 448 291 209 12 Spaces Moved 4603 | 110 364 437 630 887 899 419 440 417 . Core 281 | 1 . 1 1 . . 46 138 94 . Treads 1304 | 109 113 35 572 475 . . . . . Legs . | . . . . . . . . . . Wheels 2337 | . 251 401 57 412 899 317 . . . Hover 49 | . . . . . . . 49 . . Flight 632 | . . . . . . 56 253 323 . Fastest Speed 37 | 50 105 110 155 115 105 40 37 37 . Average Speed 124 | 159 136 146 217 139 112 88 55 43 . Slowest Speed 800 | 160 160 800 800 160 130 130 400 250 . Overloaded Moves . | . . . . . . . . . . Propulsion Burnouts . | . . . . . . . . . . Robots Hopped 13 | . . . . . . 1 4 8 . Potential Cave-ins . | . . . . . . . . . . Cave-ins Triggered . | . . . . . . . . . . Exploration Rate (%) 27 | 7 56 41 36 25 24 16 16 54 2 Regions Visited 9 Branch Regions 2 Pre-discovered Areas 1 | . . . . . . . . 1 . Known Exits Taken 6 | . . . 1 1 1 1 1 1 . Unknown Exits Taken 3 | 1 1 1 . . . . . . . Scrap Searched 2 | . . . . . . . . 2 . Spaces Dug 4 | . . . . . . 4 . . . Terrain Destroyed 62 | . . 2 19 5 16 5 14 . 1 Melee . | . . . . . . . . . . Projectile 28 | . . . 1 5 16 5 . . 1 AOE 34 | . . 2 18 . . . 14 . . Terrain Rammed . | . . . . . . . . . . Walls Destroyed . | . . . . . . . . . . Machines Disabled . | . . . . . . . . . . Actions | -11 -10 -9 -8 -7 -6 -5 -4 -4 -4 --------- Run | Yrd Mat Mat Mat Fac Fac Fac Fac Upp Upp Total 5533 | 134 466 571 832 1128 1035 458 475 427 7 Wait 363 | 5 32 47 99 128 33 5 14 . . Move 4572 | 109 363 436 629 886 898 417 431 403 . Hop 10 | . . . . . . 1 4 5 . Pick Up 70 | 5 4 10 13 18 14 3 3 . . Fast Attach 48 | 7 3 7 12 2 2 3 10 2 . Attach 31 | . 1 4 3 5 10 3 1 3 1 Detach 3 | . . . . . . . 2 1 . Swap 29 | 1 4 4 10 6 3 1 . . . Drop 51 | . 3 4 10 17 11 1 5 . . Fire 302 | 7 55 52 50 55 46 18 5 8 6 Melee 22 | . . . . . 18 4 . . . Ram 15 | . . 5 . 3 . 2 . 5 . Kick . | . . . . . . . . . . Crush 9 | . 1 2 6 . . . . . . Escape Stasis 8 | . . . . 8 . . . . . Rewire . | . . . . . . . . . . Trap . | . . . . . . . . . . Miscellaneous . | . . . . . . . . . . Route ------- -11/Scrapyard -10/Materials (discovered 3 exits: *Mat x2 / [*Min]) -9/Materials (discovered 3 exits: *Mat x2 / [*Min]) -8/Materials -7/Factory -6/Factory -5/Factory -4/Factory -4/Upper Caves -4/Upper Caves History --------- Turn | Location | Event 28 | -11/Scrapyard | Discovered new exit (range 15) 218 | -11/Scrapyard | Entered Materials 300 | -10/Materials | Build established: Mutant 578 | -10/Materials | Discovered new exit (range 15) 640 | -10/Materials | Core integrity fell below 50% 708 | -10/Materials | Discovered new exit (range 3) 799 | -10/Materials | Lost 3 parts (1u2w) 820 | -10/Materials | Discovered new exit (range 15) 907 | -10/Materials | Entered another Materials area 907 | -9/Materials | Evolved 2 slots: Propulsion x1, Utility x1 1101 | -9/Materials | Discovered new exit (range 16) 1195 | -9/Materials | Discovered new exit (range 5) 1449 | -9/Materials | Lost 3 parts (1n2w) 1705 | -9/Materials | Discovered new exit (range 15) 1749 | -9/Materials | Entered another Materials area 1749 | -8/Materials | Evolved 2 slots: Propulsion x1, Utility x1 2987 | -8/Materials | Discovered new exit (range 10) 3408 | -8/Materials | Identified exit to Factory 3410 | -8/Materials | Entered Factory 3410 | -7/Factory | Evolved 2 slots: Utility x2 3687 | -7/Factory | Repaired Imp. Sensor Array 4902 | -7/Factory | Discovered new exit (range 4) 4915 | -7/Factory | Identified exit to Factory 4982 | -7/Factory | Entered another Factory area 4982 | -6/Factory | Evolved 2 slots: Utility x1, Weapon x1 5826 | -6/Factory | Destroyed 9 combat bots 5944 | -6/Factory | Lost 3 parts (1p1n1w) 5957 | -6/Factory | Discovered new exit (range 15) 6013 | -6/Factory | Identified exit to Factory 6224 | -6/Factory | Build established: Assassin 6237 | -6/Factory | Entered another Factory area 6237 | -5/Factory | Evolved 2 slots: Propulsion x1, Utility x1 6639 | -5/Factory | Core integrity fell below 50% 6665 | -5/Factory | Spotted B-75 Beast 6671 | -5/Factory | Lost 16 parts (2p3n6u5w) 6679 | -5/Factory | Discovered new exit (range 15) 6685 | -5/Factory | Identified exit to Factory 6685 | -5/Factory | Entered another Factory area 6685 | -4/Factory | Evolved 2 slots: Propulsion x1, Utility x1 6973 | -4/Factory | Discovered new exit (range 7) 6976 | -4/Factory | Identified exit to Upper Caves 6976 | -4/Factory | Entered Upper Caves 7003 | -4/Upper Caves | Attracted the attention of an 0b10 checkpoint 7006 | -4/Upper Caves | Spotted B-86 Titan 7042 | -4/Upper Caves | Learned location of Quarantine (-2) 7124 | -4/Upper Caves | Build established: Hacker-Mutant 7142 | -4/Upper Caves | Core integrity fell below 50% 7177 | -4/Upper Caves | Core integrity fell below 20% 7178 | -4/Upper Caves | Discovered new exit (range 15) 7184 | -4/Upper Caves | Identified exit to Upper Caves 7185 | -4/Upper Caves | Entered another Upper Caves area 7186 | -4/Upper Caves | Lost 6 parts (1n3u2w) 7197 | -4/Upper Caves | Destroyed by P-70 Sage with Tesla Rifle Last Messages --------------- 07135_ VTOL Module self-destruct mechanism malfunctions. 07138_ Lgt. Nuclear Core fries itself beyond repair. 07138_ S-27 Virus destroyed. 07138_ Hvy. Machine Gun destroyed. 07140_ Acquired 25 matter. 07141_ Slammed into S-27 Virus. 07141_ Critical hit (Burn: +50). 07142_ Slammed into S-27 Virus. 07145_ VTOL Module fries itself beyond repair. 07145_ Acquired 3 matter. 07146_ Acquired 30 matter. 07151_ Acquired 28 matter. 07155_ Hacking Suite destroyed. A strange signal echoes through the caves. 07178_ EXIT=FOUND 07184_ EXIT=IDENTIFIED: UPPER CAVES LOCATION=UPPER CAVES GOAL=ESCAPE 07190_ Destroyed Hpw. Shock Rifle. 07192_ Destroyed Imp. Target Analyzer. Map ----- +----------------------------------------------------+ | ?????????????????????????????????????????????????? | | ?????????????????????????????????????????????????? | | ?????????????????????????????????????????????????? | | ?????????????????????????????????????????????????? | | ?????????????????????????????????????????????????? | | ?????????????????????????????????????????????????? | | ?????????????????????????????????????????????????? | | ?????????????????????????????????????????????????? | | ?????????????????????????????????????????????????? | | ?????????????????????????????????????????????????? | | ?????????????????????????????????????????????????? | | ?????????????????????? ??????????????????????????? | | ?????????????????????? ?????????????????????????? | | ??????????????????????? ?????????????????????????? | | ??????????????????????? ?????????????????????????? | | ??????????????????????? ##???????????????????????? | | ??????????????????????? ???????????????????????? | | ??????????????????????? #??????????????????????? | | ???????????????????????# #??????????????????????? | | ???????????????????????# #??????????????????????? | | ???????????????????????# #??????????????????????? | | ???????????????????????# #??????????????????????? | | ???????????????????????# ##?????????????????????? | | ???????????????????????# #?????????????????????? | | ????????????????# ##### ##### #???????????? | | ???????????????# @ #???????????? | | ??????????# p p % #????????? | | ????????????# ###### #### ????????? | | ????????????#??????????## ;#??????### ?????????? | | ????????????????????????# ##?????????????????????? | | ????????????????????????# ??????????????????????? | | ???????????????????????? ??????????????????????? | | ???????????????????????? #??????????????????????? | | ???????????????????????? ##??????????????????????? | | ????????????????????????#????????????????????????? | | ?????????????????????????????????????????????????? | | ?????????????????????????????????????????????????? | | ?????????????????????????????????????????????????? | | ?????????????????????????????????????????????????? | | ?????????????????????????????????????????????????? | | ?????????????????????????????????????????????????? | | ?????????????????????????????????????????????????? | | ?????????????????????????????????????????????????? | | ?????????????????????????????????????????????????? | | ?????????????????????????????????????????????????? | | ?????????????????????????????????????????????????? | | ?????????????????????????????????????????????????? | | ?????????????????????????????????????????????????? | | ?????????????????????????????????????????????????? | | ?????????????????????????????????????????????????? | +----------------------------------------------------+ Best States ------------- Heat Dissipation 59 Energy Generation 19 Energy Capacity 315 Matter Stores 300 Matter Capacity 300 Sight Range 16 Robot Scan Range 15 Terrain Scan Range 16 Terrain Scan Density 10 Jamming Range 12 Additional Mass Support 9 Armor Coverage 225 Evasion (%) 62 Targeting Accuracy 16 Recoil Reduction 4 Offensive Hacking 22 Trap Extractor Capacity 4 Item Schematics ----------------- None Robot Schematics ------------------ None Fabricated ------------ Nothing Repaired ---------- Imp. Sensor Array | 36% | -7/Factory Alien Tech Used ----------------- None Achievements -------------- None Challenges ------------ None Game ------ Seed MiningGreatTearclaws Manual? 0 Play Time 00:51:26 Cumulative 105.4 hours Start 2025.05.20 @ 21:36:09 End 2025.05.20 @ 22:31:09 Sessions 6 Manual Loads 0 Difficulty Rogue Special Mode None Game No. 275 Rogue 275 Adventurer 0 Explorer 0 Win Type - Total 2 Types 2/0/0/0/0/0/0/0/0/0 Lore% 51 Gallery% 49 Achievement% 42 Wizard Run 0 Options --------- Layout 0 ASCII 0 Keyboard 0 Movement Numpad Keybinds 0 Fullscreen 2 Font 18/Terminus Map View 76x50 Zoom Use 0% Tactical HUD 1 Map Filters NONE Filters NONE Steam 1 RUN: f1ff2ef6-5df6-4325-8066-da7fa792e0c8